bitfinex/quotes_ETHUSD_20250217
["timestamp","ask_amount","ask_price","bid_price","bid_amount"]
[1739819247215,0.7892,2710.2,2709.6,3.69053]
[1739819247625,0.7892,2710.2,2708.6,0.8313]
[1739819247853,4.02371,2710.3,2708.6,0.8313]
[1739819247854,0.7892,2710.0,2708.9,3.69144]
[1739819248150,0.7892,2709.9,2708.7,3.69174]
[1739819248351,3.7892,2709.8,2708.7,7.38346]
[1739819248527,0.7892,2709.7,2708.7,7.38346]
[1739819248729,0.7892,2709.7,2708.7,3.69172]
[1739819248937,0.7892,2709.4,2707.8,0.8313]
[1739819249145,0.333,2709.3,2708.2,3.69241]
[1739819249346,0.7892,2709.2,2708.3,3.6923]
[1739819249755,0.7892,2709.2,2708.2,3.69241]
[1739819249923,0.7892,2709.2,2707.8,5.25900348]
[1739819250118,0.7892,2709.2,2708.4,3.69217]
[1739819250427,0.7892,2709.2,2708.6,3.69194]
[1739819250867,0.7892,2709.2,2708.0,3.69271]
[1739819250868,0.7892,2709.2,2708.1,0.03691978]
[1739819251047,1.1212,2709.2,2709.1,3.69126]
[1739819251245,1.1212,2709.2,2708.5,0.758]
[1739819251471,0.7892,2709.2,2709.0,3.69129]
[1739819251624,0.7892,2709.2,2708.5,0.758]
[1739819251959,0.7892,2709.2,2708.8,3.69165]
[1739819252457,0.7892,2709.2,2708.1,0.8025]
[1739819252638,0.7892,2709.2,2708.5,3.69195]
[1739819252834,0.7892,2709.2,2708.1,0.9955836]
[1739819252835,0.7892,2709.2,2708.1,3.69256]
[1739819253158,0.7892,2709.2,2708.3,3.69232]
[1739819253524,0.8319,2709.0,2708.0,3.69273]
[1739819253730,0.8319,2709.0,2708.1,3.69262]
[1739819254036,0.8319,2708.8,2708.2,3.69246]
[1739819254643,0.8319,2708.8,2708.0,3.69267]
[1739819254842,0.8319,2708.8,2708.2,3.69243]
[1739819255043,0.8319,2708.8,2708.2,7.3848]
[1739819255435,0.8319,2708.8,2708.2,3.69237]
[1739819255836,0.33,2708.7,2708.1,3.69261]
[1739819256072,0.33,2708.7,2708.1,3.69254]
[1739819256272,0.33,2708.7,2707.9,3.6928]
[1739819256273,0.33,2708.7,2708.3,3.69234]
[1739819256460,0.33,2708.7,2708.5,3.692]
[1739819257789,0.8319,2708.8,2708.6,3.69194]
[1739819257952,0.8319,2708.8,2708.4,3.69211]
[1739819258774,0.8319,2708.8,2708.7,3.6918]
[1739819259187,0.33,2708.9,2708.8,3.69167]
[1739819259484,0.33,2708.9,2708.7,3.6918]
[1739819260185,1.1609,2709.1,2708.8,3.69159]
[1739819260592,1.1609,2709.1,2708.9,3.69143]
[1739819260793,0.8319,2709.4,2709.0,3.69139]
[1739819260955,0.8319,2709.4,2709.3,3.69099]
[1739819261155,8.297,2709.6,2709.2,3.69111]
[1739819261156,8.626,2709.6,2709.2,3.69111]
[1739819261360,3.0,2709.5,2709.4,3.69082]
[1739819261568,8.297,2709.6,2709.5,3.69071]
[1739819262092,11.297,2709.6,2709.5,3.69071]
[1739819262394,8.297,2709.6,2709.4,3.69083]
[1739819262600,8.297,2709.6,2709.5,3.69071]
[1739819262919,3.0,2709.5,2709.4,3.69083]
[1739819263220,3.0,2709.5,2708.5,3.69203]
[1739819263371,3.0,2709.5,2708.6,0.449453]
[1739819263567,3.0,2709.5,2709.2,3.6911]
[1739819264414,3.0,2709.5,2709.2,3.69105]
[1739819264700,3.0,2709.5,2709.0,3.69128]
[1739819265200,3.0,2709.5,2708.9,3.69151]
[1739819265401,1.1297,2709.4,2708.9,3.69151]
[1739819265562,1.1297,2709.4,2708.7,3.69179]
[1739819265762,0.8099,2709.3,2708.7,3.69179]
[1739819265998,0.8099,2709.3,2708.3,0.0369177]
[1739819266312,0.8099,2709.3,2709.0,3.69131]
[1739819266611,1.30386,2709.3,2709.0,3.69131]
[1739819266816,0.8099,2709.3,2709.0,3.69131]
[1739819267019,0.8099,2709.3,2708.9,3.69152]
[1739819267231,0.327,2709.4,2708.7,0.7869]
[1739819267517,0.327,2709.4,2709.3,3.69099]
[1739819268468,0.327,2709.4,2709.0,3.6913]
[1739819268662,0.327,2709.4,2709.3,3.69099]
[1739819268969,3.0,2709.5,2709.4,3.69085]
[1739819270002,3.0,2709.5,2708.8,4.42954006]
[1739819270003,3.0,2709.5,2708.8,0.73792006]
[1739819270179,3.0,2709.5,2709.4,3.69085]
[1739819272504,8.297,2709.6,2709.5,3.69071]
[1739819273968,0.7697,2710.7,2710.5,3.68924]
[1739819274172,0.7697,2710.7,2710.6,3.68922]
[1739819274608,0.7697,2710.7,2710.5,3.68924]
[1739819274911,0.7697,2710.7,2710.3,3.68953]
[1739819275072,0.7697,2710.7,2710.4,3.68944]
[1739819275270,0.7697,2710.7,2710.5,3.68931]
[1739819275502,0.7697,2710.7,2710.6,3.68922]
[1739819276004,0.7697,2710.7,2710.0,0.7634]
[1739819276173,0.7697,2710.7,2710.5,3.68933]
[1739819276580,0.7697,2710.7,2710.5,3.68928]
[1739819277007,0.323,2711.1,2710.6,0.03689365]
[1739819277207,0.7697,2711.3,2711.0,3.6886]
[1739819277505,0.7697,2711.3,2711.2,3.6884]
[1739819277872,8.617,2711.4,2711.2,3.6884]
[1739819278074,11.294,2711.4,2711.3,3.68826]
[1739819278288,8.294,2711.4,2711.3,3.68826]
[1739819278780,8.294,2711.4,2711.2,3.68839]
[1739819279121,8.294,2711.4,2710.7,1.493368]
[1739819279413,8.294,2711.4,2711.1,3.68853]
[1739819279589,8.294,2711.4,2711.1,3.68844]
[1739819279784,8.294,2711.4,2711.2,3.68837]
[1739819280210,11.294,2711.4,2711.3,3.68826]
[1739819280419,8.294,2711.4,2711.0,3.68858]
[1739819280625,0.8154,2711.3,2710.9,3.68871]
[1739819280922,0.8154,2711.3,2711.1,3.68845]
[1739819281119,8.294,2711.4,2711.2,3.68831]
[1739819281627,8.294,2711.4,2711.3,3.68826]
[1739819282826,8.294,2711.4,2711.3,4.425917]
[1739819283725,0.17487448,2712.7,2711.3,0.737657]
[1739819283928,0.7951,2712.4,2712.1,3.68716]
[1739819284089,0.7951,2712.4,2712.1,7.37427]
[1739819284285,0.7951,2712.4,2712.1,3.68707]
[1739819284511,0.7451,2712.4,2711.9,3.68737]
[1739819284712,0.7451,2712.4,2711.7,3.68765]
[1739819284927,1.15161,2712.4,2711.7,3.68763]
[1739819285224,0.7451,2712.4,2711.2,3.68831]
[1739819285528,0.7451,2712.4,2711.7,3.6877]
[1739819285828,0.32,2712.6,2710.8,5.66080042]
[1739819286131,0.32,2712.6,2711.7,3.68764]
[1739819286328,0.32,2712.5,2712.2,3.68702]
[1739819286889,0.32,2712.7,2712.2,3.68694]
[1739819287091,0.32,2712.7,2712.0,3.68723]
[1739819287294,0.32,2712.7,2712.3,3.68682]
[1739819287615,0.321,2712.7,2712.5,3.68654]
[1739819287815,0.321,2712.7,2712.6,3.6865]
[1739819288020,0.8021,2712.9,2712.8,3.68622]
[1739819288229,8.291,2713.1,2712.8,3.6862]
[1739819288536,8.291,2713.1,2712.9,3.68608]
[1739819288696,0.005,2713.4,2713.2,3.68557]
[1739819288902,0.005,2713.4,2713.2,7.37117]
[1739819289139,0.005,2713.4,2713.1,3.6858]
[1739819289299,0.005,2713.4,2712.8,3.6861]
[1739819289498,0.8245,2713.3,2712.8,3.6861]
[1739819290012,0.8245,2713.3,2712.3,0.368682]
[1739819290341,0.8245,2713.3,2712.4,3.68668]
[1739819290835,0.8245,2713.3,2712.3,3.6868]
[1739819291134,0.8245,2713.3,2712.4,3.68676]
[1739819291334,0.8245,2713.3,2712.4,3.68668]
[1739819291906,0.8245,2713.3,2712.8,3.68622]
[1739819292235,0.8245,2713.3,2712.8,3.68614]
[1739819292438,0.8245,2713.3,2713.1,3.6858]
[1739819292738,0.005,2713.4,2713.2,3.68568]
[1739819292899,0.005,2713.4,2713.3,3.68554]
[1739819293100,0.005,2713.4,2713.3,4.53999416]
[1739819293335,0.005,2713.4,2713.3,5.36255859]
[1739819293502,1e-05,2713.4,2713.3,5.91255859]
[1739819294328,1e-05,2713.4,2713.3,5.32570742]
[1739819294523,1e-05,2713.4,2713.3,4.50810742]
[1739819294911,1e-05,2713.4,2713.1,3.68577]
[1739819295123,1e-05,2713.4,2713.1,3.6858]
[1739819295636,1e-05,2713.4,2713.2,3.68566]
[1739819295938,1e-05,2713.4,2713.3,3.68554]
[1739819296324,1e-05,2713.4,2713.0,3.68587]
[1739819296530,0.8247,2713.3,2712.8,4.054752]
[1739819296703,1e-05,2713.4,2712.9,0.4423345]
[1739819297037,1e-05,2713.4,2713.3,3.68554]
[1739819297929,1e-05,2713.4,2713.2,3.6856]
[1739819298125,1e-05,2713.4,2713.3,3.68554]
[1739819298736,1e-05,2713.4,2713.2,3.6856]
[1739819299043,1e-05,2713.4,2713.3,3.68554]
[1739819299339,1e-05,2713.4,2713.2,3.6856]
[1739819299546,1e-05,2713.4,2713.3,3.68554]
[1739819299740,1e-05,2713.4,2713.2,3.6856]
[1739819300317,1e-05,2713.4,2712.8,3.68617]
[1739819300518,1e-05,2713.4,2712.9,3.68602]
[1739819300724,1e-05,2713.4,2713.0,3.68591]
[1739819300918,1e-05,2713.4,2713.2,3.68557]
[1739819301112,1e-05,2713.4,2713.3,3.68554]
[1739819301432,1e-05,2713.4,2713.2,3.68566]
[1739819302147,1e-05,2713.4,2713.0,7.37173]
[1739819302331,1e-05,2713.4,2712.7,3.68629]
[1739819302538,1e-05,2713.4,2713.2,3.68556]
[1739819303759,1e-05,2713.4,2713.3,3.68554]
[1739819303940,1e-05,2713.4,2713.2,3.68556]
[1739819304518,1e-05,2713.4,2712.8,3.68617]
[1739819304519,1e-05,2713.4,2712.9,3.68597]
[1739819304762,1e-05,2713.4,2712.6,3.68641]
[1739819304928,1e-05,2713.4,2713.0,3.68595]
[1739819305440,1e-05,2713.4,2713.1,3.68573]
[1739819305951,1e-05,2713.4,2712.4,4.46262]
[1739819306158,0.8152,2713.3,2712.7,3.68625]
[1739819306719,1e-05,2713.4,2712.8,0.8096]
[1739819306977,1e-05,2713.4,2713.3,3.68554]
[1739819307527,1e-05,2713.4,2713.3,3.72239458]
[1739819307841,1e-05,2713.4,2713.3,5.27280204]
[1739819308243,1e-05,2713.4,2713.3,11.08710435]
[1739819308472,0.8152,2715.2,2713.6,0.8096]
[1739819308782,0.318,2714.9,2714.7,3.68356]
[1739819308980,0.318,2714.9,2713.8,3.68486]
[1739819308981,0.318,2714.9,2714.3,3.68411]
[1739819309146,0.318,2714.8,2714.3,3.68411]
[1739819309734,0.318,2714.8,2714.1,3.68438]
[1739819309944,0.7772,2714.7,2714.2,3.68432]
[1739819310158,0.7772,2714.7,2714.2,7.36864]
[1739819310343,0.7772,2714.7,2714.3,3.68419]
[1739819310549,0.7772,2714.7,2714.4,3.68405]
[1739819310971,0.7772,2714.7,2714.2,3.68432]
[1739819311148,0.7772,2714.7,2714.1,3.68443]
[1739819311347,0.7772,2714.7,2713.8,3.68479]
[1739819311547,0.7772,2714.7,2713.4,0.03684837]
[1739819311866,0.318,2714.6,2714.0,3.68457]
[1739819312029,0.318,2714.6,2714.1,3.68446]
[1739819312856,0.7772,2714.7,2713.6,3.68506]
[1739819313046,1.0952,2714.7,2714.4,3.68404]
[1739819313438,1.0952,2714.7,2714.2,3.6842]
[1739819314369,1.0952,2714.7,2714.0,3.68452]
[1739819314770,1.0952,2714.7,2713.8,3.6848]
[1739819314975,0.40952,2714.6,2713.8,3.68479]
[1739819315140,0.40952,2714.6,2713.8,3.68477]
[1739819315341,0.40952,2714.6,2713.8,3.68476]
[1739819315776,0.40952,2714.6,2713.9,3.68473]
[1739819315951,0.8045,2714.5,2713.5,3.68526]
[1739819316270,0.8045,2714.0,2713.2,3.68557]
[1739819316675,0.8045,2714.0,2713.2,3.68565]
[1739819316841,0.8045,2714.0,2713.1,3.68574]
[1739819317041,0.448898,2713.9,2713.1,3.68574]
[1739819317271,0.317,2713.8,2713.1,3.68574]
[1739819317640,0.8045,2713.7,2713.1,3.68574]
[1739819317871,0.8045,2713.7,2713.2,3.68567]
[1739819318400,0.8045,2713.7,2713.0,3.68588]
[1739819318570,0.8045,2713.7,2712.6,0.7623]
[1739819318766,0.317,2713.6,2713.2,3.68555]
[1739819319167,0.317,2713.6,2713.0,3.68588]
[1739819319989,0.317,2713.6,2713.3,3.68541]
[1739819320788,0.317,2713.6,2713.2,3.68556]
[1739819320965,0.8045,2713.7,2712.6,0.7623]
[1739819321166,1.1215,2713.7,2712.7,3.68636]
[1739819321400,1.1215,2713.7,2713.2,3.68558]
[1739819321562,1.1215,2713.7,2713.2,7.37119]
[1739819321902,1.1215,2713.7,2713.2,3.68558]
[1739819322069,0.8045,2713.7,2712.8,5.26923989]
[1739819322270,0.7559,2714.0,2713.5,3.68518]
[1739819322484,0.7559,2714.0,2713.6,3.68503]
[1739819322798,0.7559,2714.0,2713.8,3.68485]
[1739819323005,3.0,2714.1,2713.9,3.68473]
[1739819323170,8.597,2714.2,2713.9,3.68473]
[1739819323171,8.281,2714.2,2714.1,3.68446]
[1739819323372,0.7559,2714.3,2714.1,3.68446]
[1739819323761,0.316,2714.5,2713.7,0.03684366]
[1739819323966,0.316,2714.5,2714.4,3.68405]
[1739819324397,0.316,2714.5,2714.2,3.6842]
[1739819324768,0.316,2714.5,2714.0,3.68456]
[1739819325167,0.7619,2714.4,2713.8,3.68478]
[1739819325366,0.7619,2714.4,2713.7,3.68489]
[1739819325571,0.7619,2714.4,2713.8,3.68484]
[1739819326482,0.7619,2714.4,2714.0,3.68454]
[1739819326679,0.7619,2714.4,2713.8,3.68474]
[1739819326885,0.7619,2714.4,2713.9,3.68463]
[1739819327093,0.7619,2714.4,2714.0,3.68452]
[1739819327305,0.7619,2714.4,2714.1,3.68434]
[1739819327520,0.7619,2714.4,2713.5,0.7525]
[1739819327670,0.7619,2714.4,2713.7,3.685]
[1739819327874,0.7619,2714.4,2713.9,3.68473]
[1739819328085,0.7619,2714.4,2714.0,3.68449]
[1739819328482,0.7619,2714.4,2713.9,3.68466]
[1739819328786,0.7619,2714.4,2713.9,3.68465]
[1739819328981,0.7619,2714.4,2714.0,3.68451]
[1739819329395,0.7619,2714.4,2714.1,7.36872]
[1739819329610,0.7865,2715.0,2713.5,0.7525]
[1739819329783,0.7865,2715.0,2713.8,3.68486]
[1739819329784,1.99335,2715.0,2713.8,3.68486]
[1739819329981,0.314,2714.9,2714.6,3.68372]
[1739819330174,0.7865,2715.0,2714.9,3.68337]
[1739819330379,0.314,2715.1,2715.0,3.68322]
[1739819330574,0.314,2715.1,2714.5,3.68383]
[1739819330779,0.314,2715.1,2714.6,3.6837]
[1739819331031,0.314,2715.1,2714.5,3.68383]
[1739819331440,0.314,2715.2,2714.2,0.8196]
[1739819331736,0.9015754,2715.3,2714.6,3.68367]
[1739819331909,0.315,2715.2,2714.2,0.8196]
[1739819332116,3.8305,2715.1,2714.2,3.68423]
[1739819332434,0.8305,2715.1,2714.2,3.68423]
[1739819332613,0.8305,2715.1,2713.8,1.50803178]
[1739819332614,0.8305,2715.0,2713.8,1.50803178]
[1739819332814,0.451362,2714.9,2713.9,0.0368423]
[1739819333035,0.8305,2715.0,2714.2,3.68425]
[1739819333308,0.8305,2715.0,2714.0,3.68459]
[1739819333309,3.8305,2715.0,2714.0,3.68459]
[1739819333509,0.7884,2714.7,2713.9,3.68471]
[1739819333674,0.747191,2714.6,2713.8,3.68478]
[1739819334029,0.747191,2714.6,2713.8,3.68482]
[1739819334231,0.747191,2714.6,2713.7,3.68496]
[1739819334453,3.747191,2714.6,2713.7,3.68493]
[1739819334608,0.7566,2714.5,2713.7,3.68493]
[1739819334941,0.5187581,2714.4,2713.7,3.68493]
[1739819335146,0.314,2714.3,2713.7,3.68493]
[1739819335745,0.7949,2714.2,2712.6,0.7518]
[1739819336049,0.7949,2714.0,2713.1,3.68578]
[1739819336348,0.7949,2714.0,2713.2,3.6856]
[1739819336945,0.7949,2714.0,2713.3,3.68548]
[1739819337160,0.313,2713.9,2713.4,3.68528]
[1739819337647,0.313,2713.9,2713.6,3.68512]
[1739819337942,0.7949,2714.0,2713.7,3.68492]
[1739819337943,1.1089,2714.0,2713.7,3.68492]
[1739819338241,0.314,2714.3,2714.1,3.68438]
[1739819338466,0.7727,2714.5,2714.2,3.68432]
[1739819338755,0.7727,2714.5,2714.3,3.68405]
[1739819338756,1.0867,2714.5,2714.3,3.68405]
[1739819338956,0.7727,2714.5,2714.3,3.68405]
[1739819339864,0.7727,2714.5,2714.1,3.6844]
[1739819340009,0.7727,2714.5,2714.2,3.68423]
[1739819340212,0.7727,2714.5,2714.4,3.68405]
[1739819340643,0.7727,2714.5,2714.0,3.68452]
[1739819340949,0.7727,2714.5,2714.2,3.68423]
[1739819341307,0.313,2714.7,2714.4,3.68405]
[1739819341507,0.313,2714.7,2714.2,3.68424]
[1739819341709,0.313,2714.7,2714.3,3.68411]
[1739819342172,0.7711,2715.2,2715.1,3.6831]
[1739819342644,0.1447754,2715.3,2715.0,3.68323]
[1739819342847,0.1447754,2715.3,2715.2,3.68296]
[1739819344631,5.4e-06,2715.3,2715.2,9.26763389]
[1739819344862,5.4e-06,2715.3,2715.2,4.44326]
[1739819345368,5.4e-06,2715.3,2715.2,3.68296]
[1739819345726,0.66810974,2716.7,2715.4,0.7603]
[1739819345939,1.48010974,2716.7,2716.1,3.68174]
[1739819346140,1.48010974,2716.7,2715.9,3.68195]
[1739819346345,1.48010974,2716.7,2716.6,3.68107]
[1739819346587,0.812,2716.7,2716.4,3.68131]
[1739819346808,0.812,2716.7,2715.6,3.68242]
[1739819346809,0.319,2716.8,2716.7,3.68093]
[1739819346996,0.319,2717.0,2716.8,3.68077]
[1739819347154,0.78272433,2717.3,2716.9,3.68065]
[1739819347356,0.78272433,2717.3,2717.2,3.68025]
[1739819347683,0.4637727,2718.0,2716.9,3.6806]
[1739819347840,0.812,2717.9,2716.6,4.44124]
[1739819348031,3.67973,2717.6,2716.6,3.68094]
[1739819348275,3.67973,2717.6,2715.6,6.68236]
[1739819348276,3.812,2717.2,2715.8,0.7603]
[1739819348431,3.812,2717.2,2714.8,3.87047705]
[1739819348432,0.812,2716.8,2715.9,3.68192]
[1739819348649,0.812,2716.8,2715.9,3.682]
[1739819348959,0.812,2716.8,2715.5,0.7603]
[1739819348960,0.812,2716.8,2716.0,3.68188]
[1739819349160,0.3812,2716.7,2716.0,3.68188]
[1739819349561,0.3812,2716.7,2715.6,3.68242]
[1739819349734,0.812,2716.8,2716.1,3.68166]
[1739819349931,0.812,2716.8,2716.3,3.68139]
[1739819350564,0.812,2716.8,2716.2,3.68157]
[1739819350944,0.812,2716.8,2716.1,3.68166]
[1739819351272,0.812,2716.8,2716.3,3.68136]
[1739819351574,3.7642,2716.5,2715.5,3.68245]
[1739819351775,0.85885739,2716.4,2715.5,3.68245]
[1739819351981,0.85885739,2716.4,2715.5,7.36493]
[1739819352151,4.54024739,2716.4,2715.4,3.68261]
[1739819352351,0.7642,2716.0,2714.9,3.68326]
[1739819352691,0.7642,2715.8,2715.1,3.68302]
[1739819352901,0.7642,2715.8,2714.9,3.68326]
[1739819352902,1.596018,2715.8,2714.9,3.68326]
[1739819353049,1.596018,2715.8,2714.8,0.03683017]
[1739819353244,1.596018,2715.8,2714.9,3.68333]
[1739819353700,0.55,2715.7,2714.7,3.68361]
[1739819353860,0.55,2715.7,2714.5,3.68384]
[1739819353861,0.7642,2715.3,2714.3,4.052521]
[1739819354206,1.508877,2715.3,2714.3,4.052501]
[1739819354337,0.7642,2715.3,2714.6,3.68374]
[1739819354540,0.7642,2715.3,2714.7,3.68364]
[1739819354772,0.7642,2715.3,2714.6,3.68374]
[1739819354976,0.7642,2715.3,2714.4,3.68398]
[1739819355302,4.23297,2715.2,2714.2,3.6842]
[1739819355461,3.801497,2715.1,2714.3,3.68417]
[1739819355661,3.782,2714.9,2714.1,3.68442]
[1739819355982,0.782,2714.9,2714.5,3.68384]
[1739819356360,0.782,2714.9,2714.3,3.68419]
[1739819356563,0.782,2714.9,2714.1,3.68438]
[1739819356790,0.782,2714.9,2713.8,3.68476]
[1739819356791,3.0,2714.6,2713.8,3.68476]
[1739819356946,0.9604,2714.8,2713.8,3.68476]
[1739819356947,0.782,2714.5,2713.8,3.68476]
[1739819357483,0.782,2714.5,2713.5,0.03684621]
[1739819357648,0.782,2714.5,2713.7,3.68496]
[1739819357852,0.782,2714.5,2713.5,3.68515]
[1739819357853,0.55,2714.4,2713.5,3.68515]
[1739819358051,0.782,2714.2,2713.5,3.68515]
[1739819358314,0.782,2714.2,2712.6,0.0368485]
[1739819358315,0.321,2714.1,2712.9,3.68609]
[1739819358442,0.321,2714.1,2713.9,3.68466]
[1739819358799,0.321,2714.1,2712.8,1.52884777]
[1739819359107,0.321,2714.1,2713.5,3.68514]
[1739819359311,0.321,2714.1,2713.6,0.03684985]
[1739819359312,0.171,2714.1,2713.6,0.03684985]
[1739819359548,0.171,2714.1,2713.7,3.68499]
[1739819359760,0.171,2714.1,2713.8,3.68478]
[1739819360030,0.171,2714.1,2713.6,3.68509]
[1739819360195,0.171,2714.1,2713.5,3.68524]
[1739819360399,0.5663,2714.1,2713.5,3.68524]
[1739819360637,0.5663,2714.1,2713.5,3.68526]
[1739819361395,0.782,2714.2,2713.7,3.68492]
[1739819361603,0.322,2714.1,2713.7,3.68492]
[1739819362036,0.322,2714.1,2713.5,3.68518]
[1739819362235,0.322,2714.1,2713.9,3.68466]
[1739819362433,0.322,2714.1,2714.0,3.68459]
[1739819362751,0.322,2714.1,2713.7,3.68487]
[1739819362917,0.322,2714.1,2713.4,3.68533]
[1739819363094,0.322,2714.1,2713.2,3.68561]
[1739819363300,0.322,2714.1,2713.3,3.6855]
[1739819363501,1.100819,2714.1,2713.3,3.68553]
[1739819363701,1.100819,2714.1,2713.5,3.68526]
[1739819364008,1.100819,2714.1,2713.2,0.03685251]
[1739819364009,1.100819,2714.1,2713.2,0.03685096]
[1739819364341,1.100819,2714.1,2713.4,3.68528]
[1739819364508,1.100819,2714.1,2713.3,3.68554]
[1739819364708,4.100819,2714.1,2713.3,7.37108]
[1739819364933,0.8567159,2714.0,2713.3,3.68554]
[1739819365639,0.8567159,2714.0,2713.2,0.0368525]
[1739819365841,3.322,2714.1,2713.4,3.6854]
[1739819366004,0.322,2714.1,2713.4,3.6854]
[1739819366199,3.322,2714.1,2713.6,3.68511]
[1739819366403,0.322,2714.1,2713.1,0.03685245]
[1739819366651,0.322,2714.1,2713.1,3.72260245]
[1739819366824,0.322,2714.1,2713.5,3.68516]
[1739819367024,0.322,2714.1,2713.4,3.68541]
[1739819367416,0.32,2714.0,2713.6,3.68512]
[1739819368042,0.32,2714.0,2713.4,3.68533]
[1739819368406,0.32,2714.0,2713.2,4.05789025]
[1739819368643,0.32,2714.0,2713.6,3.68513]
[1739819369213,0.32,2714.0,2713.5,3.68518]
[1739819370645,0.32,2714.0,2713.6,3.68507]
[1739819371153,0.32,2714.0,2712.8,4.44005507]
[1739819371305,0.32,2714.0,2713.4,3.68532]
[1739819371650,0.798641,2714.0,2713.3,3.68554]
[1739819372412,0.32,2714.0,2713.4,3.68534]
[1739819372638,0.32,2714.0,2713.6,3.68513]
[1739819372838,0.318,2714.0,2713.6,3.68513]
[1739819373037,0.318,2714.0,2713.5,3.68527]
[1739819373445,3.0,2714.3,2713.9,3.68471]
[1739819373647,8.28,2714.4,2714.0,3.68452]
[1739819373853,3.0,2714.3,2713.6,0.7943]
[1739819374079,4.20732,2714.3,2713.6,3.68512]
[1739819374209,4.20732,2714.3,2713.2,0.7943]
[1739819374546,4.20732,2714.3,2713.7,3.68498]
[1739819374969,4.20732,2714.3,2713.6,3.68507]
[1739819375151,4.20732,2714.3,2713.7,3.68498]
[1739819375347,1.617143,2714.2,2713.5,3.68523]
[1739819375669,2.411143,2714.2,2713.5,3.68523]
[1739819375861,6.68454,2714.1,2713.3,3.68544]
[1739819376144,3.0,2714.0,2713.4,3.68536]
[1739819376313,3.0,2714.1,2713.4,3.68536]
[1739819376515,4.0302793,2714.1,2713.4,3.68536]
[1739819377358,4.0302793,2714.1,2713.4,3.68539]
[1739819377517,4.0302793,2714.1,2713.4,7.37072]
[1739819377717,4.0302793,2714.1,2713.4,3.68533]
[1739819378567,4.0302793,2714.1,2713.2,3.68561]
[1739819378740,1.0302793,2714.1,2712.8,5.2780069]
[1739819378946,4.23447,2714.1,2712.9,4.21389069]
[1739819379145,4.23447,2714.1,2713.3,7.37092]
[1739819379326,0.55,2714.1,2713.3,3.68546]
[1739819379531,3.55,2714.1,2713.4,3.68534]
[1739819379732,0.55,2714.1,2713.4,3.68534]
[1739819379980,8.337291,2714.1,2713.4,3.68534]
[1739819380279,3.55,2714.1,2713.4,3.6853]
[1739819380569,0.55,2714.1,2713.4,3.6853]
[1739819380866,7.23448,2714.1,2713.4,3.6853]
[1739819382663,0.794,2714.2,2713.8,3.68476]
[1739819382869,0.794,2714.2,2713.4,0.813]
[1739819383071,8.594,2714.4,2713.5,0.03684526]
[1739819383233,8.28,2714.4,2714.3,3.68419]
[1739819384265,8.28,2714.4,2714.3,4.50602393]
[1739819385332,8.28,2714.4,2714.3,3.68419]
[1739819385841,1.084,2715.0,2714.5,3.68389]
[1739819386375,1.084,2715.0,2714.3,3.68416]
[1739819387429,1.084,2715.0,2713.9,3.6846]
[1739819387430,0.7536,2714.7,2713.9,3.6846]
[1739819387635,0.443718,2714.6,2713.9,3.6846]
[1739819387835,0.443718,2714.6,2713.8,3.6848]
[1739819387836,3.0,2714.5,2713.8,3.6848]
[1739819388136,0.443718,2714.6,2714.0,3.68449]
[1739819388335,0.443718,2714.6,2713.9,3.68473]
[1739819388535,3.443718,2714.6,2713.9,3.68473]
[1739819388744,0.7880978,2714.5,2713.9,3.68473]
[1739819388949,0.7880978,2714.5,2714.0,3.68453]
[1739819389240,3.443718,2714.6,2713.9,3.68472]
[1739819389451,0.443718,2714.6,2713.9,3.68472]
[1739819389660,3.443718,2714.6,2713.9,3.68466]
[1739819390477,7.127578,2714.6,2713.8,3.68477]
[1739819391175,0.443718,2714.6,2713.5,0.8065]
[1739819391376,0.7536,2714.7,2713.5,0.8065]
[1739819391377,0.7536,2714.7,2714.3,3.68417]
[1739819391539,1.0646,2714.7,2714.1,3.68437]
[1739819391743,3.68393,2714.5,2713.7,3.68491]
[1739819392046,0.8272,2714.4,2713.7,3.68489]
[1739819392257,0.8272,2714.4,2713.7,7.88701189]
[1739819392457,3.0,2714.3,2713.6,3.68513]
[1739819392636,3.68425,2714.3,2713.5,7.37038]
[1739819392843,3.8272,2714.4,2713.7,3.68493]
[1739819393045,7.5113,2714.4,2713.7,3.68493]
[1739819393294,3.8272,2714.4,2713.7,3.68493]
[1739819393599,0.751119,2714.3,2713.7,3.68493]
[1739819394095,0.751119,2714.3,2712.7,0.7581]
[1739819394096,0.8272,2714.0,2712.7,0.7581]
[1739819394303,0.7827,2713.7,2713.0,3.68594]
[1739819394444,0.311,2713.6,2713.4,3.68531]
[1739819394650,0.311,2713.6,2713.5,3.68527]
[1739819395345,0.7827,2713.7,2713.5,3.68527]
[1739819395768,0.311,2713.9,2713.8,3.68486]
[1739819396606,0.311,2714.1,2713.1,0.7718]
[1739819396805,0.7827,2714.0,2713.4,3.68532]
[1739819397259,0.7827,2714.0,2713.5,3.68526]
[1739819397598,0.7827,2714.0,2713.5,3.68519]
[1739819397805,0.7827,2714.0,2713.1,3.68572]
[1739819397806,4.23474,2713.9,2713.1,3.68572]
[1739819398011,3.0,2713.8,2712.9,3.68599]